fUSD/lending_fUSD_20240625
["ID","MTS","AMOUNT","RATE_DAILY","PERIOD"]
[330396797,1719346243601,-500.0,0.00019178,2]
[330396798,1719346243612,-385.31206662,0.00019178,2]
[330396799,1719346243621,-500.0,0.00019178,2]
[330396800,1719346243632,-500.0,0.00019178,2]
[330396801,1719346243642,-500.0,0.00019178,2]
[330396802,1719346243653,-1028.92,0.00019178,2]
[330396803,1719346243664,-500.0,0.00019178,2]
[330396804,1719346243674,-151.0,0.00019178,2]
[330396805,1719346243684,-151.0,0.00019178,2]
[330396806,1719346243694,-500.0,0.00019178,2]
[330396807,1719346243704,-151.0,0.00019178,2]
[330396808,1719346243714,-500.0,0.00019178,2]
[330396809,1719346243725,-151.0,0.00019178,2]
[330396810,1719346243735,-500.0,0.00019178,2]
[330396811,1719346243745,-500.0,0.00019178,2]
[330396813,1719346243755,-500.0,0.00019178,2]
[330396814,1719346243766,-545.74,0.00019178,2]
[330396815,1719346243776,-500.0,0.00019178,2]
[330396816,1719346243785,-500.0,0.00019178,2]
[330396817,1719346243795,-500.0,0.00019178,2]
[330396818,1719346243805,-584.4,0.00019178,2]
[330396819,1719346243815,-768.14,0.00019178,2]
[330396820,1719346243826,-858.73,0.00019178,2]
[330396821,1719346243836,-546.67,0.00019178,2]
[330396822,1719346243845,-895.71,0.00019178,2]
[330396823,1719346243855,-500.0,0.00019178,2]
[330396824,1719346243866,-751.59,0.00019178,2]
[330396825,1719346243876,-500.0,0.00019178,2]
[330396826,1719346243886,-500.0,0.00019178,2]
[330396827,1719346243896,-904.01,0.00019178,2]
[330396828,1719346243907,-621.59,0.00019178,2]
[330396829,1719346243916,-525.9,0.00019178,2]
[330396830,1719346243926,-500.0,0.00019178,2]
[330396831,1719346243941,-500.0,0.00019178,2]
[330396832,1719346243951,-504.37,0.00019178,2]
[330396834,1719346243962,-500.0,0.00019178,2]
[330396836,1719346243971,-500.0,0.00019178,2]
[330396838,1719346243982,-500.0,0.00019178,2]
[330396839,1719346243991,-500.0,0.00019178,2]
[330396840,1719346244002,-500.0,0.00019178,2]
[330396841,1719346244015,-500.0,0.00019178,2]
[330396842,1719346244027,-500.0,0.00019178,2]
[330396843,1719346244038,-500.0,0.00019178,2]
[330396844,1719346244047,-604.46,0.00019178,2]
[330396845,1719346244059,-988.81,0.00019178,2]
[330396846,1719346244068,-500.0,0.00019178,2]
[330396847,1719346244078,-500.0,0.00019178,2]
[330396848,1719346244088,-814.25,0.00019178,2]
[330396849,1719346244098,-500.0,0.00019178,2]
[330396850,1719346244108,-500.0,0.00019178,2]
[330396851,1719346244118,-500.0,0.00019178,2]
[330396852,1719346244128,-500.0,0.00019178,2]
[330396853,1719346244137,-194.74130631,0.00019178,2]
[330396854,1719346244147,-1438.59,0.00019178,2]
[330396855,1719346244157,-570.22,0.00019178,2]
[330396856,1719346244167,-500.0,0.00019178,2]
[330396857,1719346244177,-500.0,0.00019178,2]
[330396858,1719346244187,-500.0,0.00019178,2]
[330396859,1719346244197,-878.88,0.00019178,2]
[330396860,1719346244207,-625.23,0.00019178,2]
[330396861,1719346244216,-151.0,0.00019178,2]
[330396862,1719346244226,-500.0,0.00019178,2]
[330396863,1719346244236,-500.0,0.00019178,2]
[330396864,1719346244246,-500.0,0.00019178,2]
[330396865,1719346244260,-596.6397997,0.00019178,2]
[330396866,1719346244270,-500.0,0.00019178,2]
[330396867,1719346244280,-500.0,0.00019178,2]
[330396868,1719346244290,-673.06,0.00019178,2]
[330396869,1719346244299,-500.0,0.00019178,2]
[330396870,1719346244310,-741.19,0.00019178,2]
[330396871,1719346244320,-151.309664,0.00019178,2]
[330396872,1719346244330,-500.0,0.00019178,2]
[330396873,1719346244340,-500.0,0.00019178,2]
[330396874,1719346244350,-151.631207,0.00019178,2]
[330396875,1719346244360,-500.0,0.00019178,2]
[330396876,1719346244370,-500.0,0.00019178,2]
[330396877,1719346244380,-500.0,0.00019178,2]
[330396878,1719346244526,-500.0,0.00019178,2]
[330396879,1719346244536,-500.0,0.00019178,2]
[330396880,1719346244546,-500.0,0.00019178,2]
[330396881,1719346244555,-500.0,0.00019178,2]
[330396882,1719346244565,-500.0,0.00019178,2]
[330396883,1719346244575,-839.4,0.00019178,2]
[330396884,1719346244584,-643.57,0.00019178,2]
[330396885,1719346244594,-500.0,0.00019178,2]
[330396886,1719346244603,-500.0,0.00019178,2]
[330396887,1719346244613,-555.22,0.00019178,2]
[330396888,1719346244622,-564.22,0.00019178,2]
[330396889,1719346244633,-500.0,0.00019178,2]
[330396890,1719346244643,-500.0,0.00019178,2]
[330396891,1719346244652,-500.0,0.00019178,2]
[330396892,1719346244661,-500.0,0.00019178,2]
[330396893,1719346244671,-500.0,0.00019178,2]
[330396894,1719346244680,-500.0,0.00019178,2]
[330396895,1719346244690,-500.0,0.00019178,2]
[330396896,1719346244700,-628.82,0.00019178,2]
[330396897,1719346244709,-500.0,0.00019178,2]
[330396898,1719346244718,-605.21,0.00019178,2]
[330396899,1719346244728,-500.0,0.00019178,2]
[330396900,1719346244737,-1052.44,0.00019178,2]
[330396901,1719346244746,-500.0,0.00019178,2]
[330396902,1719346244756,-500.0,0.00019178,2]
[330396903,1719346244765,-500.0,0.00019178,2]
[330396904,1719346244775,-713.44,0.00019178,2]
[330396905,1719346244784,-500.0,0.00019178,2]
[330396906,1719346244794,-500.0,0.00019178,2]
[330396907,1719346244803,-1005.39,0.00019178,2]
[330396908,1719346244812,-500.0,0.00019178,2]
[330396909,1719346244821,-500.0,0.00019178,2]
[330396910,1719346244831,-1584.01,0.00019178,2]
[330396911,1719346244841,-500.0,0.00019178,2]
[330396912,1719346244851,-500.0,0.00019178,2]
[330396913,1719346244860,-505.12,0.00019178,2]
[330396914,1719346244870,-518.9,0.00019178,2]
[330396915,1719346244881,-626.46,0.00019178,2]
[330396916,1719346244891,-500.0,0.00019178,2]
[330396917,1719346244900,-500.0,0.00019178,2]
[330396918,1719346244909,-403.51651149,0.00019178,2]
[330396919,1719346244919,-500.0,0.00019178,2]
[330396920,1719346244932,-626.56,0.00019178,2]
[330396921,1719346244942,-500.0,0.00019178,2]
[330396922,1719346244951,-866.81,0.00019178,2]
[330396923,1719346244961,-500.0,0.00019178,2]
[330396924,1719346244971,-390.18842348,0.00019178,2]
[330396925,1719346244981,-910.82,0.00019178,2]
[330396926,1719346244990,-1039.81,0.00019178,2]
[330396927,1719346245000,-500.0,0.00019178,2]
[330396928,1719346245010,-565.59,0.00019178,2]
[330396929,1719346245022,-836.48,0.00019178,2]
[330396930,1719346245032,-500.0,0.00019178,2]
[330396931,1719346245041,-151.0,0.00019178,2]
[330396932,1719346245051,-500.0,0.00019178,2]
[330396933,1719346245060,-500.0,0.00019178,2]
[330396934,1719346245070,-292.71491458,0.00019178,2]
[330396935,1719346245080,-151.0,0.00019178,2]
[330396936,1719346245089,-153.893311,0.00019178,2]
[330396937,1719346245099,-500.0,0.00019178,2]
[330396938,1719346245108,-500.0,0.00019178,2]
[330396939,1719346245117,-500.0,0.00019178,2]
[330396940,1719346245126,-500.0,0.00019178,2]
[330396941,1719346245135,-500.0,0.00019178,2]
[330396942,1719346245145,-500.0,0.00019178,2]
[330396943,1719346245154,-500.0,0.00019178,2]
[330396944,1719346245164,-500.0,0.00019178,2]
[330396945,1719346245173,-500.0,0.00019178,2]
[330396946,1719346245183,-500.0,0.00019178,2]
[330396947,1719346245192,-1070.72,0.00019178,2]
[330396948,1719346245202,-987.06,0.00019178,2]
[330396949,1719346245211,-500.0,0.00019178,2]
[330396950,1719346245220,-969.3,0.00019178,2]
[330396951,1719346245230,-500.0,0.00019178,2]
[330396952,1719346245239,-2183.09,0.00019178,2]
[330396953,1719346245248,-500.0,0.00019178,2]
[330396954,1719346245258,-500.0,0.00019178,2]
[330396955,1719346245268,-500.0,0.00019178,2]
[330396956,1719346245277,-500.0,0.00019178,2]
[330396957,1719346245286,-616.07785609,0.00019178,2]
[330396958,1719346245296,-924.04,0.00019178,2]
[330396959,1719346245305,-2013.77,0.00019178,2]
[330396960,1719346245315,-948.88,0.00019178,2]
[330396961,1719346245324,-1018.4,0.00019178,2]
[330396962,1719346245333,-500.0,0.00019178,2]
[330396963,1719346245342,-500.0,0.00019178,2]
[330396964,1719346245351,-526.46,0.00019178,2]
[330396965,1719346245360,-500.0,0.00019178,2]
[330396966,1719346245370,-500.0,0.00019178,2]
[330396967,1719346245380,-640.82,0.00019178,2]
[330396968,1719346245390,-500.0,0.00019178,2]
[330396969,1719346245399,-629.35,0.00019178,2]
[330396970,1719346245409,-774.06,0.00019178,2]
[330396971,1719346245418,-500.0,0.00019178,2]
[330396972,1719346245427,-1615.28,0.00019178,2]
[330396973,1719346245437,-500.0,0.00019178,2]
[330396974,1719346245446,-500.0,0.00019178,2]
[330396975,1719346245456,-349.33066587,0.00019178,2]
[330396976,1719346245465,-500.0,0.00019178,2]
[330396977,1719346245475,-2681.48,0.00019178,2]
[330396978,1719346245484,-1375.12,0.00019178,2]
[330396979,1719346245494,-572.21,0.00019178,2]
[330396980,1719346245503,-500.0,0.00019178,2]
[330396981,1719346245514,-500.0,0.00019178,2]
[330396982,1719346245524,-500.0,0.00019178,2]
[330396983,1719346245533,-500.0,0.00019178,2]
[330396984,1719346245543,-500.0,0.00019178,2]
[330396985,1719346245552,-564.65,0.00019178,2]
[330396986,1719346245561,-697.71,0.00019178,2]
[330396987,1719346245571,-151.0,0.00019178,2]
[330396988,1719346245580,-151.0,0.00019178,2]
[330396989,1719346245590,-500.0,0.00019178,2]
[330396990,1719346245599,-500.0,0.00019178,2]
[330396991,1719346245608,-151.0,0.00019178,2]
[330396992,1719346245618,-151.0,0.00019178,2]
[330396993,1719346245628,-237.973524,0.00019178,2]
[330396994,1719346245637,-773.36,0.00019178,2]
[330396995,1719346245648,-500.0,0.00019178,2]
[330396996,1719346245657,-788.94,0.00019178,2]
[330396997,1719346245667,-671.97,0.00019178,2]
[330396998,1719346245676,-500.0,0.00019178,2]
[330396999,1719346245686,-675.06,0.00019178,2]
[330397000,1719346245695,-1250.49,0.00019178,2]
[330397001,1719346245704,-1676.09,0.00019178,2]
[330397002,1719346245713,-500.0,0.00019178,2]
[330397003,1719346245722,-500.0,0.00019178,2]
[330397004,1719346245731,-500.0,0.00019178,2]
[330397005,1719346245741,-568.37426632,0.00019178,2]
[330397006,1719346245750,-500.0,0.00019178,2]
[330397007,1719346245760,-1026.33,0.00019178,2]
[330397008,1719346245769,-776.2,0.00019178,2]
[330397009,1719346245779,-924.84,0.00019178,2]
[330397010,1719346245788,-160.620592,0.00019178,2]
[330397011,1719346245798,-1860.87,0.00019178,2]
[330397012,1719346245807,-500.0,0.00019178,2]
[330397013,1719346245817,-2758.54,0.00019178,2]
[330397014,1719346245827,-1048.89,0.00019178,2]
[330397015,1719346245836,-500.0,0.00019178,2]
[330397016,1719346245846,-500.0,0.00019178,2]
[330397017,1719346245856,-500.0,0.00019178,2]
[330397018,1719346245865,-719.36,0.00019178,2]
[330397019,1719346245874,-756.99,0.00019178,2]
[330397020,1719346245884,-741.49,0.00019178,2]
[330397021,1719346245895,-153.88067986,0.00019178,2]
[330397022,1719346245904,-549.17,0.00019178,2]
[330397023,1719346245914,-1745.72,0.00019178,2]
[330397024,1719346245923,-500.0,0.00019178,2]
[330397025,1719346245936,-1686.83,0.00019178,2]
[330397026,1719346245945,-505.18271551,0.00019178,2]
[330397027,1719346245955,-1088.28,0.00019178,2]
[330397028,1719346245965,-1779.41,0.00019178,2]
[330397029,1719346245976,-500.0,0.00019178,2]
[330397030,1719346245985,-500.0,0.00019178,2]
[330397031,1719346245994,-500.0,0.00019178,2]
[330397032,1719346246004,-500.0,0.00019178,2]
[330397033,1719346246014,-500.0,0.00019178,2]
[330397034,1719346246024,-500.0,0.00019178,2]
[330397035,1719346246034,-742.88,0.00019178,2]
[330397036,1719346246043,-500.0,0.00019178,2]
[330397037,1719346246053,-500.0,0.00019178,2]
[330397038,1719346246062,-799.92,0.00019178,2]
[330397039,1719346246072,-500.0,0.00019178,2]
[330397040,1719346246082,-500.0,0.00019178,2]
[330397041,1719346246091,-575.4,0.00019178,2]
[330397042,1719346246102,-500.0,0.00019178,2]
[330397043,1719346246111,-500.0,0.00019178,2]
[330397044,1719346246121,-904.41,0.00019178,2]
[330397045,1719346246131,-500.0,0.00019178,2]
[330397046,1719346246140,-151.0,0.00019178,2]
[330397047,1719346246149,-151.0,0.00019178,2]
[330397048,1719346246158,-500.0,0.00019178,2]
[330397049,1719346246168,-500.0,0.00019178,2]
[330397050,1719346246177,-500.0,0.00019178,2]
[330397051,1719346246186,-151.0,0.00019178,2]
[330397052,1719346246196,-500.0,0.00019178,2]
[330397053,1719346246205,-500.0,0.00019178,2]
[330397054,1719346246217,-1164.26,0.00019178,2]
[330397055,1719346246227,-500.0,0.00019178,2]
[330397056,1719346246236,-500.0,0.00019178,2]
[330397057,1719346246245,-500.0,0.00019178,2]
[330397058,1719346246255,-500.0,0.00019178,2]
[330397059,1719346246265,-151.0,0.00019178,2]
[330397060,1719346246274,-500.0,0.00019178,2]
[330397061,1719346246284,-583.19,0.00019178,2]
[330397063,1719346246294,-500.0,0.00019178,2]
[330397065,1719346246303,-1541.65,0.00019178,2]
[330397067,1719346246312,-151.0,0.00019178,2]
[330397069,1719346246322,-1394.48,0.00019178,2]
[330397071,1719346246332,-151.0,0.00019178,2]
[330397073,1719346246341,-552.26,0.00019178,2]
[330397074,1719346246351,-500.0,0.00019178,2]
[330397075,1719346246361,-500.0,0.00019178,2]
[330397076,1719346246371,-639.57,0.00019178,2]
[330397077,1719346246380,-500.0,0.00019178,2]
[330397078,1719346246390,-500.0,0.00019178,2]
[330397079,1719346246399,-500.0,0.00019178,2]
[330397080,1719346246408,-500.0,0.00019178,2]
[330397081,1719346246418,-1570.9,0.00019178,2]
[330397082,1719346246428,-500.0,0.00019178,2]
[330397083,1719346246437,-500.0,0.00019178,2]
[330397084,1719346246447,-1942.47,0.00019178,2]
[330397085,1719346246468,-1736.56,0.00019178,2]
[330397086,1719346246479,-1295.73,0.00019178,2]
[330397087,1719346246489,-565.8,0.00019178,2]
[330397089,1719346246499,-500.0,0.00019178,2]
[330397091,1719346246508,-500.0,0.00019178,2]
[330397092,1719346246518,-500.0,0.00019178,2]
[330397094,1719346246528,-500.0,0.00019178,2]
[330397096,1719346246538,-500.0,0.00019178,2]
[330397097,1719346246547,-500.0,0.00019178,2]
[330397099,1719346246557,-151.803834,0.00019178,2]
[330397100,1719346246567,-500.0,0.00019178,2]
[330397102,1719346246577,-1660.0,0.00019178,2]
[330397104,1719346246587,-1065.18,0.00019178,2]
[330397105,1719346246596,-500.0,0.00019178,2]
[330397107,1719346246606,-1882.26,0.00019178,2]
[330397109,1719346246616,-526.26,0.00019178,2]
[330397110,1719346246626,-757.83,0.00019178,2]
[330397112,1719346246636,-500.0,0.00019178,2]
[330397114,1719346246646,-500.0,0.00019178,2]
[330397116,1719346246657,-500.0,0.00019178,2]
[330397117,1719346246667,-500.0,0.00019178,2]
[330397119,1719346246677,-645.21,0.00019178,2]
[330397121,1719346246687,-507.96,0.00019178,2]
[330397122,1719346246698,-1191.92,0.00019178,2]
[330397124,1719346246709,-1585.9,0.00019178,2]
[330397126,1719346246719,-500.0,0.00019178,2]
[330397128,1719346246729,-500.0,0.00019178,2]
[330397130,1719346246739,-694.69,0.00019178,2]
[330397131,1719346246749,-533.07,0.00019178,2]
[330397133,1719346246759,-500.0,0.00019178,2]
[330397135,1719346246769,-728.3,0.00019178,2]
[330397137,1719346246778,-916.75,0.00019178,2]
[330397140,1719346246788,-1213.89,0.00019178,2]
[330397143,1719346246799,-500.0,0.00019178,2]
[330397144,1719346246809,-500.0,0.00019178,2]
[330397145,1719346246818,-151.0,0.00019178,2]
[330397146,1719346246829,-151.0,0.00019178,2]
[330397148,1719346246838,-151.0,0.00019178,2]
[330397150,1719346246848,-151.0,0.00019178,2]
[330397152,1719346246858,-196.429158,0.00019178,2]
[330397155,1719346246869,-500.0,0.00019178,2]
[330397157,1719346246880,-1309.24,0.00019178,2]
[330397159,1719346246890,-716.04,0.00019178,2]
[330397161,1719346246900,-773.46,0.00019178,2]
[330397163,1719346246909,-500.0,0.00019178,2]
[330397164,1719346246920,-560.49,0.00019178,2]
[330397166,1719346246932,-500.0,0.00019178,2]
[330397168,1719346246944,-505.13256982,0.00019178,2]
[330397170,1719346246954,-500.0,0.00019178,2]
[330397172,1719346246965,-500.0,0.00019178,2]
[330397175,1719346246976,-1898.49,0.00019178,2]
[330397177,1719346246986,-500.0,0.00019178,2]
[330397178,1719346246996,-500.0,0.00019178,2]
[330397179,1719346247006,-500.0,0.00019178,2]
[330397180,1719346247021,-538.85,0.00019178,2]
[330397181,1719346247031,-500.0,0.00019178,2]
[330397182,1719346247041,-2046.39,0.00019178,2]
[330397183,1719346247051,-1696.28,0.00019178,2]
[330397184,1719346247062,-500.0,0.00019178,2]
[330397185,1719346247071,-510.98,0.00019178,2]
[330397186,1719346247080,-500.0,0.00019178,2]
[330397187,1719346247090,-500.0,0.00019178,2]
[330397188,1719346247099,-500.0,0.00019178,2]
[330397189,1719346247109,-2906.35,0.00019178,2]
[330397190,1719346247120,-500.0,0.00019178,2]
[330397191,1719346247130,-225.12100654,0.00019178,2]
[330397192,1719346247139,-744.81,0.00019178,2]
[330397193,1719346247150,-500.0,0.00019178,2]
[330397194,1719346247160,-500.0,0.00019178,2]
[330397195,1719346247169,-500.0,0.00019178,2]
[330397196,1719346247179,-917.08,0.00019178,2]
[330397197,1719346247189,-500.0,0.00019178,2]
[330397198,1719346247198,-500.0,0.00019178,2]
[330397199,1719346247208,-1374.47,0.00019178,2]
[330397200,1719346247218,-500.0,0.00019178,2]
[330397201,1719346247228,-500.0,0.00019178,2]
[330397202,1719346247239,-1283.35,0.00019178,2]
[330397203,1719346247248,-500.0,0.00019178,2]
[330397204,1719346247259,-1712.44,0.00019178,2]
[330397205,1719346247269,-504.19,0.00019178,2]
[330397206,1719346247280,-500.0,0.00019178,2]
[330397207,1719346247292,-526.74,0.00019178,2]
[330397208,1719346247302,-1017.08,0.00019178,2]
[330397209,1719346247312,-509.86,0.00019178,2]
[330397210,1719346247322,-151.501723,0.00019178,2]
[330397211,1719346247332,-500.0,0.00019178,2]
[330397212,1719346247341,-649.25,0.00019178,2]
[330397213,1719346247351,-953.88,0.00019178,2]
[330397214,1719346247360,-1613.34,0.00019178,2]
[330397215,1719346247369,-500.0,0.00019178,2]
[330397216,1719346247380,-524.87,0.00019178,2]
[330397217,1719346247389,-662.69,0.00019178,2]
[330397218,1719346247399,-500.0,0.00019178,2]
[330397219,1719346247408,-500.0,0.00019178,2]
[330397220,1719346247418,-1128.05,0.00019178,2]
[330397221,1719346247427,-500.0,0.00019178,2]
[330397222,1719346247437,-1281.06,0.00019178,2]
[330397223,1719346247447,-767.69,0.00019178,2]
[330397224,1719346247456,-500.0,0.00019178,2]
[330397225,1719346247468,-500.0,0.00019178,2]
[330397226,1719346247478,-686.76,0.00019178,2]
[330397227,1719346247487,-500.0,0.00019178,2]
[330397228,1719346247496,-500.0,0.00019178,2]
[330397229,1719346247506,-500.0,0.00019178,2]
[330397230,1719346247515,-151.0,0.00019178,2]
[330397231,1719346247525,-1117.58,0.00019178,2]
[330397232,1719346247534,-500.0,0.00019178,2]
[330397233,1719346247544,-727.32,0.00019178,2]
[330397234,1719346247553,-500.0,0.00019178,2]
[330397235,1719346247563,-602.66,0.00019178,2]
[330397236,1719346247572,-1076.21,0.00019178,2]
[330397237,1719346247582,-500.0,0.00019178,2]
[330397238,1719346247591,-2596.93,0.00019178,2]
[330397239,1719346247601,-751.49,0.00019178,2]
[330397240,1719346247610,-151.0,0.00019178,2]
[330397241,1719346247621,-151.0,0.00019178,2]
[330397242,1719346247630,-515.16,0.00019178,2]
[330397243,1719346247640,-256.413738,0.00019178,2]
[330397244,1719346247650,-500.0,0.00019178,2]
[330397245,1719346247659,-500.0,0.00019178,2]
[330397246,1719346247670,-500.0,0.00019178,2]
[330397247,1719346247679,-500.0,0.00019178,2]
[330397248,1719346247689,-500.0,0.00019178,2]
[330397249,1719346247699,-169.63014,0.00019178,2]
[330397250,1719346247708,-500.0,0.00019178,2]
[330397251,1719346247718,-1825.88,0.00019178,2]
[330397252,1719346247728,-500.0,0.00019178,2]
[330397253,1719346247737,-500.0,0.00019178,2]
[330397254,1719346247748,-1364.43,0.00019178,2]
[330397255,1719346247761,-500.0,0.00019178,2]
[330397256,1719346247772,-992.62,0.00019178,2]
[330397257,1719346247782,-571.21,0.00019178,2]
[330397258,1719346247792,-500.0,0.00019178,2]
[330397259,1719346247801,-614.88,0.00019178,2]
[330397260,1719346247811,-911.1,0.00019178,2]
[330397261,1719346247821,-500.0,0.00019178,2]
[330397262,1719346247831,-674.57,0.00019178,2]
[330397263,1719346247842,-500.0,0.00019178,2]
[330397264,1719346247853,-500.0,0.00019178,2]
[330397265,1719346247862,-500.0,0.00019178,2]
[330397266,1719346247875,-500.0,0.00019178,2]
[330397267,1719346247886,-676.02,0.00019178,2]
[330397268,1719346247897,-500.0,0.00019178,2]
[330397269,1719346247907,-4937.58,0.00019178,2]
[330397270,1719346247918,-500.0,0.00019178,2]
[330397271,1719346247928,-3519.34,0.00019178,2]
[330397272,1719346247943,-5619.28,0.00019178,2]
[330397273,1719346247953,-500.0,0.00019178,2]
[330397274,1719346247963,-619.45,0.00019178,2]
[330397275,1719346247974,-500.0,0.00019178,2]
[330397276,1719346247984,-500.0,0.00019178,2]
[330397277,1719346247994,-500.0,0.00019178,2]
[330397278,1719346248003,-500.0,0.00019178,2]
[330397279,1719346248015,-776.15,0.00019178,2]
[330397280,1719346248029,-2293.6,0.00019178,2]
[330397281,1719346248040,-852.66,0.00019178,2]
[330397282,1719346248050,-500.0,0.00019178,2]
[330397283,1719346248060,-500.0,0.00019178,2]
[330397284,1719346248070,-2141.46,0.00019178,2]
[330397285,1719346248080,-795.78,0.00019178,2]
[330397286,1719346248090,-500.0,0.00019178,2]
[330397287,1719346248100,-500.0,0.00019178,2]
[330397288,1719346248110,-2205.58,0.00019178,2]
[330397289,1719346248119,-500.0,0.00019178,2]
[330397290,1719346248130,-500.0,0.00019178,2]
[330397291,1719346248140,-500.0,0.00019178,2]
[330397292,1719346248150,-500.0,0.00019178,2]
[330397293,1719346248160,-1136.93,0.00019178,2]
[330397294,1719346248170,-573.06,0.00019178,2]
[330397295,1719346248180,-500.0,0.00019178,2]
[330397296,1719346248190,-500.0,0.00019178,2]
[330397297,1719346248200,-625.23,0.00019178,2]
[330397298,1719346248210,-4895.07,0.00019178,2]
[330397299,1719346248220,-1863.57,0.00019178,2]
[330397300,1719346248230,-1331.24,0.00019178,2]
[330397301,1719346248240,-500.0,0.00019178,2]
[330397302,1719346248251,-1330.85,0.00019178,2]
[330397303,1719346248261,-1736.64,0.00019178,2]
[330397304,1719346248272,-500.0,0.00019178,2]
[330397305,1719346248281,-878.2,0.00019178,2]
[330397306,1719346248292,-3274.12,0.00019178,2]
[330397307,1719346248301,-827.83,0.00019178,2]
[330397308,1719346248312,-23144.67,0.00019178,2]
[330397309,1719346248322,-500.0,0.00019178,2]
[330397310,1719346248332,-500.0,0.00019178,2]
[330397311,1719346248342,-500.0,0.00019178,2]
[330397312,1719346248351,-500.0,0.00019178,2]
[330397313,1719346248361,-500.0,0.00019178,2]
[330397314,1719346248371,-500.0,0.00019178,2]
[330397315,1719346248382,-500.0,0.00019178,2]
[330397316,1719346248391,-1108.56,0.00019178,2]
[330397317,1719346248401,-500.0,0.00019178,2]
[330397318,1719346248411,-2141.42,0.00019178,2]
[330397319,1719346248421,-500.0,0.00019178,2]
[330397320,1719346248431,-500.0,0.00019178,2]
[330397321,1719346248441,-500.0,0.00019178,2]
[330397322,1719346248452,-1325.02,0.00019178,2]
[330397323,1719346248462,-500.0,0.00019178,2]
[330397324,1719346248472,-685.69,0.00019178,2]
[330397325,1719346248482,-500.0,0.00019178,2]
[330397326,1719346248492,-151.477243,0.00019178,2]
[330397327,1719346248501,-2492.81,0.00019178,2]
[330397328,1719346248511,-500.0,0.00019178,2]
[330397329,1719346248522,-773.84,0.00019178,2]
[330397330,1719346248533,-500.0,0.00019178,2]
[330397331,1719346248543,-919.23,0.00019178,2]
[330397332,1719346248554,-1007.56,0.00019178,2]
[330397333,1719346248564,-500.0,0.00019178,2]
[330397334,1719346248575,-963.86,0.00019178,2]
[330397335,1719346248585,-500.0,0.00019178,2]
[330397336,1719346248598,-1106.73,0.00019178,2]
[330397337,1719346248609,-500.0,0.00019178,2]
[330397338,1719346248619,-1395.68,0.00019178,2]
[330397339,1719346248629,-500.0,0.00019178,2]
[330397340,1719346248639,-151.0,0.00019178,2]
[330397341,1719346248649,-1383.08,0.00019178,2]
[330397342,1719346248659,-151.0,0.00019178,2]
[330397343,1719346248669,-151.0,0.00019178,2]
[330397344,1719346248679,-151.0,0.00019178,2]
[330397345,1719346248690,-173.580194,0.00019178,2]
[330397346,1719346248700,-500.0,0.00019178,2]
[330397347,1719346248711,-500.0,0.00019178,2]